bitfinex-derivatives/quotes_BTCF0:USTF0_20241217
["timestamp","ask_amount","ask_price","bid_price","bid_amount"]
[1734409104729,0.61148496,106480.0,106470.0,0.046957]
[1734409105229,0.55606203,106480.0,106470.0,0.046957]
[1734409105631,0.55606203,106480.0,106460.0,0.04388067]
[1734409105834,0.41631598,106470.0,106460.0,0.04704167]
[1734409106930,0.3608,106470.0,106460.0,0.10255765]
[1734409107240,0.3608,106470.0,106460.0,0.04704167]
[1734409107821,0.3608,106470.0,106460.0,0.11436778]
[1734409108034,0.55606203,106480.0,106460.0,0.11080678]
[1734409108423,0.55606203,106480.0,106470.0,0.046957]
[1734409108635,0.61157801,106480.0,106460.0,0.0588518]
[1734409108933,0.05551598,106470.0,106460.0,0.0588518]
[1734409109129,0.41631598,106470.0,106460.0,0.0588518]
[1734409109435,0.3608,106470.0,106460.0,0.0588518]
[1734409109927,0.3608,106470.0,106460.0,0.11436778]
[1734409110528,0.452557,106470.0,106460.0,0.0588518]
[1734409111635,0.452557,106470.0,106460.0,0.11436778]
[1734409111832,0.407757,106470.0,106460.0,0.11436778]
[1734409113440,0.407757,106470.0,106460.0,0.0588518]
[1734409116232,0.407757,106470.0,106460.0,0.11436778]
[1734409116437,0.3608,106470.0,106460.0,0.0588518]
[1734409117641,0.3608,106470.0,106460.0,0.11436778]
[1734409118734,0.3608,106470.0,106460.0,0.0588518]
[1734409119542,0.3608,106470.0,106460.0,0.11436778]
[1734409119734,0.3608,106470.0,106460.0,0.0588518]
[1734409120135,0.41631598,106470.0,106460.0,0.0588518]
[1734409121647,0.46327298,106470.0,106460.0,0.0588518]
[1734409124953,0.046961,106460.0,106440.0,0.046968]
[1734409125136,0.41631598,106450.0,106440.0,0.046968]
[1734409125851,0.3608,106450.0,106440.0,0.10258045]
[1734409126240,0.3608,106450.0,106440.0,0.11484107]
[1734409127861,0.3608,106460.0,106450.0,0.046966]
[1734409128043,0.3608,106460.0,106450.0,0.134366]
[1734409130046,0.3608,106460.0,106450.0,0.21903315]
[1734409133649,0.3608,106470.0,106460.0,0.046961]
[1734409134441,0.44480574,106470.0,106460.0,0.046961]
[1734409135042,0.407757,106470.0,106450.0,0.0874]
[1734409135349,0.3608,106460.0,106450.0,0.13163215]
[1734409135950,0.3608,106460.0,106450.0,0.046965]
[1734409136652,0.4063,106460.0,106450.0,0.046965]
[1734409136853,0.35348352,106460.0,106450.0,0.046965]
[1734409138748,0.30798352,106460.0,106450.0,0.046965]
[1734409142955,0.68947622,106480.0,106450.0,0.74546715]
[1734409143155,0.21669879,106480.0,106470.0,0.13162415]
[1734409143354,0.08869305,106480.0,106470.0,0.13162415]
[1734409144159,0.08869305,106480.0,106470.0,0.046957]
[1734409148763,0.44949305,106480.0,106470.0,0.046957]
[1734409150858,0.44949305,106480.0,106470.0,0.05910411]
[1734409152765,0.5341602,106480.0,106470.0,0.05910411]
[1734409153073,0.5341602,106480.0,106460.0,0.04696]
[1734409153074,0.6237132,106480.0,106460.0,0.04696]
[1734409153267,0.3608,106470.0,106460.0,0.04696]
[1734409153876,0.3608,106470.0,106460.0,0.05872152]
[1734409156967,0.70771894,106480.0,106460.0,0.05872152]
[1734409157364,0.3608,106470.0,106460.0,0.05872152]
[1734409159070,0.407757,106470.0,106460.0,0.05872152]
[1734409159378,0.49242415,106470.0,106460.0,0.01176152]
[1734409159577,0.49242415,106470.0,106450.0,0.046964]
[1734409159774,0.4947,106460.0,106450.0,0.046964]
[1734409161767,0.1339,106460.0,106450.0,0.046964]
[1734409162080,0.4947,106460.0,106450.0,0.046964]
[1734409164174,0.1339,106460.0,106450.0,0.046964]
[1734409164373,0.4947,106460.0,106450.0,0.046964]
[1734409164573,0.3608,106460.0,106450.0,0.046964]
[1734409164773,0.3608,106460.0,106450.0,0.13163115]
[1734409164977,0.3608,106470.0,106460.0,0.046961]
[1734409165883,0.49242415,106470.0,106460.0,0.046961]
[1734409168071,0.57642989,106470.0,106460.0,0.046961]
[1734409168575,0.49242415,106470.0,106460.0,0.046961]
[1734409168790,0.57642989,106470.0,106460.0,0.046961]
[1734409169873,0.49242415,106470.0,106460.0,0.046961]
[1734409170483,0.57642989,106470.0,106460.0,0.046961]
[1734409171277,0.49176274,106470.0,106460.0,0.046961]
[1734409171484,0.50299712,106470.0,106460.0,0.046961]
[1734409171684,0.41899138,106470.0,106460.0,0.046961]
[1734409171985,0.50299712,106470.0,106460.0,0.046961]
[1734409172289,0.41899138,106470.0,106460.0,0.046961]
[1734409172476,0.50299712,106470.0,106460.0,0.046961]
[1734409173289,0.41899138,106470.0,106460.0,0.046961]
[1734409173586,0.50299712,106470.0,106460.0,0.046961]
[1734409174085,0.55856622,106470.0,106460.0,0.046961]
[1734409174887,0.47456048,106470.0,106460.0,0.046961]
[1734409175081,0.55856622,106470.0,106460.0,0.046961]
[1734409175786,0.47456048,106470.0,106460.0,0.046961]
[1734409176184,0.55856622,106470.0,106460.0,0.046961]
[1734409179183,0.55856622,106470.0,106440.0,0.05566557]
[1734409179493,0.5974301,106460.0,106450.0,0.046964]
[1734409183989,0.541861,106460.0,106450.0,0.046964]
[1734409184183,0.497461,106460.0,106450.0,0.1025331]
[1734409185491,0.497461,106460.0,106450.0,0.046964]
[1734409188492,0.5530301,106460.0,106450.0,0.046964]
[1734409189394,0.63703584,106460.0,106450.0,0.046964]
[1734409191399,0.5530301,106460.0,106450.0,0.046964]
[1734409191901,0.497461,106460.0,106450.0,0.046964]
[1734409192382,0.53450574,106460.0,106450.0,0.1025331]
[1734409192584,0.4505,106460.0,106450.0,0.1025331]
[1734409192800,0.4505,106460.0,106450.0,0.046964]
[1734409193391,0.53450574,106460.0,106450.0,0.046964]
[1734409193788,0.4505,106460.0,106450.0,0.046964]
[1734409194187,0.4505,106460.0,106450.0,0.1025331]
[1734409195190,0.3608,106460.0,106450.0,0.1025331]
[1734409195387,0.3608,106460.0,106450.0,0.1433331]
[1734409196102,0.50299812,106470.0,106450.0,0.0963691]
[1734409196295,0.50299812,106470.0,106460.0,0.1025301]
[1734409197399,0.67054465,106470.0,106460.0,0.046961]
[1734409197596,0.58653891,106470.0,106450.0,0.1433341]
[1734409197903,0.44495633,106460.0,106450.0,0.087765]
[1734409198805,0.44495633,106460.0,106450.0,0.046965]
[1734409199000,0.50052543,106460.0,106450.0,0.046965]
[1734409199303,0.58802543,106460.0,106450.0,0.046965]
[1734409199501,0.73375753,106460.0,106440.0,0.05835043]
[1734409199696,0.4163691,106450.0,106440.0,0.05835043]
[1734409200100,0.3608,106450.0,106440.0,0.05835043]
[1734409200805,0.44495633,106450.0,106440.0,0.11391953]
[1734409201012,0.3608,106450.0,106440.0,0.11391953]
[1734409202711,0.67818843,106460.0,106440.0,0.11391953]
[1734409203302,0.62261933,106460.0,106440.0,0.06695053]
[1734409203511,0.53245633,106460.0,106450.0,0.1025351]
[1734409203813,0.044,106460.0,106450.0,0.1581042]
[1734409204016,0.49191433,106470.0,106460.0,0.046961]
[1734409204313,0.49191433,106470.0,106460.0,0.1025301]
[1734409204314,0.53581433,106470.0,106460.0,0.1025301]
[1734409204524,0.48885633,106470.0,106460.0,0.1025301]
[1734409207115,0.4047,106470.0,106460.0,0.1025301]
[1734409208110,0.48885633,106470.0,106460.0,0.1025301]
[1734409208610,0.4047,106470.0,106460.0,0.1025301]
[1734409209813,0.0439,106470.0,106460.0,0.1025301]
[1734409210819,0.4047,106470.0,106460.0,0.1025301]
[1734409211708,0.4047,106470.0,106460.0,0.11336659]
[1734409213919,0.4047,106470.0,106460.0,0.13336659]
[1734409218116,0.4602691,106470.0,106460.0,0.07779749]
[1734409218511,0.54442543,106470.0,106460.0,0.07779749]
[1734409220723,0.4602691,106470.0,106460.0,0.07779749]
[1734409222024,0.4047,106470.0,106460.0,0.13336659]
[1734409224424,0.48885633,106470.0,106460.0,0.13336659]
[1734409226526,0.0439,106470.0,106460.0,0.13336659]
[1734409227025,0.52924938,106480.0,106470.0,0.046957]
[1734409227214,0.57244938,106480.0,106470.0,0.1025261]
[1734409227415,0.52944938,106480.0,106470.0,0.1025261]
[1734409227623,0.44529305,106480.0,106470.0,0.1025261]
[1734409228727,0.08449305,106480.0,106470.0,0.1025261]
[1734409229028,0.3608,106490.0,106480.0,0.046953]
[1734409229229,0.3608,106490.0,106480.0,0.1580912]
[1734409230029,0.36088527,106490.0,106480.0,0.1580912]
[1734409231422,8.527e-05,106490.0,106480.0,0.1580912]
[1734409231628,8.527e-05,106490.0,106480.0,0.5188912]
[1734409234327,8.527e-05,106490.0,106480.0,0.52930467]
[1734409236633,8.527e-05,106490.0,106480.0,0.58487377]
[1734409238140,8.527e-05,106490.0,106480.0,0.52930467]
[1734409238832,8.527e-05,106490.0,106480.0,0.58487377]
[1734409239040,0.3608,106510.0,106480.0,0.88487377]
[1734409239227,0.3608,106510.0,106500.0,0.1580822]
[1734409240141,0.36087856,106510.0,106500.0,0.1580822]
[1734409240730,7.856e-05,106510.0,106500.0,0.1580822]
[1734409242141,7.856e-05,106510.0,106500.0,0.5188822]
[1734409244130,7.856e-05,106510.0,106500.0,0.52915082]
[1734409247229,7.856e-05,106510.0,106500.0,0.41801262]
[1734409247530,0.41644766,106510.0,106490.0,0.046948]
[1734409247728,0.5011691,106500.0,106490.0,0.046948]
[1734409247945,0.4456,106500.0,106490.0,0.046948]
[1734409248440,0.4867,106500.0,106490.0,0.05742608]
[1734409259740,0.4867,106500.0,106490.0,0.14205542]
[1734409261151,0.4867,106500.0,106490.0,0.05742608]
[1734409268353,0.533645,106500.0,106490.0,0.05742608]
[1734409271348,0.64471126,106500.0,106480.0,0.046952]
[1734409271554,0.46328213,106490.0,106480.0,0.046952]
[1734409273655,0.54743846,106490.0,106480.0,0.046952]
[1734409275061,0.54743846,106490.0,106480.0,0.05752822]
[1734409276056,0.54743846,106490.0,106470.0,0.066956]
[1734409276249,0.4461,106480.0,106470.0,0.12248913]
[1734409276457,0.54858713,106480.0,106470.0,0.066956]
[1734409276959,0.59098713,106480.0,106470.0,0.066956]
[1734409277352,0.18323313,106480.0,106470.0,0.066956]
[1734409277552,0.0853,106480.0,106470.0,0.12248913]
[1734409278560,0.4461,106480.0,106470.0,0.13277566]
[1734409280164,0.3608,106480.0,106470.0,0.13277566]
[1734409280961,0.3608,106480.0,106470.0,0.07724253]
[1734409281767,0.3608,106480.0,106470.0,0.13277566]
[1734409285164,0.58798946,106490.0,106480.0,0.046954]
[1734409285367,0.53245633,106490.0,106480.0,0.046954]
[1734409286067,0.53245633,106490.0,106480.0,0.10248713]
[1734409286270,0.53245633,106490.0,106480.0,0.046954]
[1734409286470,0.53245633,106490.0,106480.0,0.10248713]
[1734409286675,0.59743376,106500.0,106480.0,0.15802026]
[1734409286868,0.48545633,106500.0,106490.0,0.10248213]
[1734409287168,0.4013,106500.0,106490.0,0.10248213]
[1734409287357,0.3608,106500.0,106490.0,0.10248213]
[1734409288560,0.54743446,106500.0,106490.0,0.046949]
[1734409289262,0.44495633,106500.0,106490.0,0.046949]
[1734409289464,0.50048946,106500.0,106490.0,0.046949]
[1734409289662,0.41633313,106500.0,106490.0,0.046949]
[1734409289863,0.50048946,106500.0,106490.0,0.046949]
[1734409290063,0.44495633,106500.0,106490.0,0.046949]
[1734409292373,0.3608,106500.0,106490.0,0.046949]
[1734409292966,0.50048946,106500.0,106490.0,0.046949]
[1734409293174,0.60296759,106500.0,106480.0,0.046953]
[1734409293364,0.41633313,106490.0,106480.0,0.046953]
[1734409293869,0.3608,106490.0,106480.0,0.046953]
[1734409294066,0.3608,106490.0,106480.0,0.10248613]
[1734409295270,0.3608,106490.0,106480.0,0.1125325]
[1734409300671,0.3608,106490.0,106480.0,0.16806563]
[1734409300973,0.3608,106490.0,106480.0,0.25336563]
[1734409301872,0.08415633,106500.0,106490.0,0.046949]
[1734409301873,0.44495633,106500.0,106490.0,0.046949]
[1734409302079,0.44495633,106500.0,106490.0,0.10248213]
[1734409307181,0.44495633,106500.0,106490.0,0.046949]
[1734409307485,0.50048946,106500.0,106490.0,0.046949]
[1734409314689,0.44495633,106500.0,106490.0,0.046949]
[1734409315489,0.55693376,106500.0,106490.0,0.046949]
[1734409317687,0.19613376,106500.0,106490.0,0.10248213]
[1734409317892,0.19614791,106500.0,106490.0,0.10248213]
[1734409318076,0.44497048,106500.0,106490.0,0.10248213]
[1734409318690,0.08417048,106500.0,106490.0,0.10248213]
[1734409319582,0.19614791,106500.0,106490.0,0.10248213]
[1734409319781,0.08417048,106500.0,106490.0,0.10248213]
[1734409321277,0.63902647,106510.0,106500.0,0.046945]
[1734409321485,0.55485599,106510.0,106500.0,0.046945]
[1734409321684,0.639023,106510.0,106500.0,0.046945]
[1734409321879,0.639023,106510.0,106500.0,0.10247813]
[1734409322091,0.27823812,106510.0,106500.0,0.15801126]
[1734409322395,0.12576069,106510.0,106500.0,0.15801126]
[1734409323493,0.04157856,106510.0,106500.0,0.15801126]
[1734409324694,7.856e-05,106510.0,106500.0,0.19861126]
[1734409325189,7.856e-05,106510.0,106500.0,0.24121126]
[1734409325590,7.856e-05,106510.0,106500.0,0.60201126]
[1734409326092,7.856e-05,106510.0,106500.0,0.65754439]
[1734409326285,7.856e-05,106510.0,106500.0,0.60201126]
[1734409326689,0.48628213,106530.0,106520.0,0.046936]
[1734409326987,0.48578213,106530.0,106520.0,0.15800226]
[1734409327189,0.48578213,106530.0,106520.0,0.10246913]
[1734409327583,0.48578213,106530.0,106520.0,0.10257464]
[1734409327787,0.40167771,106530.0,106520.0,0.10257464]
[1734409327988,0.40217771,106530.0,106520.0,0.10257464]
[1734409328991,0.40167771,106530.0,106520.0,0.10257464]
[1734409329784,0.40167771,106530.0,106520.0,0.15810777]
[1734409329988,0.40217771,106530.0,106520.0,0.15810777]
[1734409330896,0.40167771,106530.0,106520.0,0.15810777]
[1734409331899,0.04137771,106530.0,106520.0,0.15810777]
[1734409332287,0.04137771,106530.0,106520.0,0.20090777]
[1734409332890,0.04087771,106530.0,106520.0,0.20090777]
[1734409333406,0.45721084,106530.0,106520.0,0.04704151]
[1734409333693,0.55967597,106530.0,106520.0,0.01021876]
[1734409333884,0.5974261,106530.0,106500.0,0.046943]
[1734409334084,0.77713313,106510.0,106500.0,0.046943]
[1734409334289,0.77713313,106510.0,106500.0,0.10247613]
[1734409334491,0.81713313,106510.0,106500.0,0.046943]
[1734409334887,0.7616,106510.0,106500.0,0.10255004]
[1734409335097,0.4008,106510.0,106500.0,0.10255004]
[1734409336305,0.4008,106510.0,106500.0,0.04701691]
[1734409336498,0.7616,106510.0,106500.0,0.10255004]
[1734409337395,0.7616,106510.0,106500.0,0.11250103]
[1734409340397,0.91960726,106510.0,106500.0,0.0100249]
[1734409340599,1.00378939,106510.0,106500.0,7.391e-05]
[1734409340920,1.11576682,106510.0,106500.0,7.391e-05]
[1734409341500,1.06855585,106510.0,106480.0,0.05722319]
[1734409341700,0.77713313,106490.0,106480.0,0.05722319]
[1734409342113,0.82103313,106490.0,106480.0,0.05722319]
[1734409342607,0.82103313,106490.0,106480.0,0.0573375]
[1734409344018,0.7655,106490.0,106480.0,0.0573375]
[1734409344519,0.85014005,106490.0,106480.0,0.0573375]
[1734409344910,0.85014005,106490.0,106480.0,0.0103845]
[1734409345414,0.89708905,106490.0,106480.0,0.0103845]
[1734409351626,0.89708905,106490.0,106480.0,0.00011431]
[1734409353414,0.89708905,106490.0,106480.0,0.04706831]
[1734409354913,0.89708905,106490.0,106480.0,0.04756831]
[1734409361327,0.17548905,106490.0,106480.0,0.04756831]
[1734409361528,0.89708905,106490.0,106480.0,0.04756831]
[1734409363431,0.98100121,106490.0,106480.0,0.04756831]
[1734409366030,0.95191185,106490.0,106480.0,0.04756831]
[1734409369534,1.06388928,106490.0,106480.0,0.04756831]
[1734409370433,0.97997712,106490.0,106480.0,0.04756831]
[1734409370933,0.97997712,106490.0,106480.0,0.04706831]
[1734409373242,1.03552781,106490.0,106480.0,0.00011431]
[1734409373435,1.06382184,106490.0,106480.0,0.00011431]
[1734409373641,0.046954,106480.0,106470.0,0.02]
[1734409373844,0.71106701,106480.0,106470.0,0.02]
[1734409374038,0.71106701,106480.0,106470.0,0.0205]
[1734409375045,0.71106701,106480.0,106470.0,0.02]
[1734409375847,0.71106701,106480.0,106470.0,0.066958]
[1734409376048,0.71106701,106480.0,106470.0,0.067458]
[1734409376937,0.71106701,106480.0,106470.0,0.066958]
[1734409377957,0.71106701,106480.0,106470.0,0.067458]
[1734409379044,0.71106701,106480.0,106470.0,0.066958]
[1734409379342,0.71106701,106480.0,106470.0,0.02]
[1734409379754,0.79509004,106480.0,106470.0,0.02]
[1734409379952,0.79509004,106480.0,106470.0,0.0205]
[1734409381048,0.79509004,106480.0,106470.0,0.02]
[1734409381950,0.79509004,106480.0,106470.0,0.0205]
[1734409382940,0.79509004,106480.0,106470.0,0.02]
[1734409383348,0.85062758,106480.0,106470.0,0.02]
[1734409383549,0.7666177,106480.0,106470.0,0.02]
[1734409383946,0.7666177,106480.0,106470.0,0.0205]
[1734409386351,0.71106701,106480.0,106470.0,0.0205]
[1734409386550,0.79504376,106480.0,106470.0,0.0205]
[1734409386762,0.71106701,106480.0,106470.0,0.0205]
[1734409388245,0.7666177,106480.0,106470.0,0.0205]
[1734409388850,0.59996563,106480.0,106470.0,0.0205]
[1734409389153,0.71106701,106480.0,106470.0,0.0205]
[1734409391148,0.65551632,106480.0,106470.0,0.0205]
[1734409394852,0.71106701,106480.0,106470.0,0.0205]
[1734409395759,0.75812589,106480.0,106470.0,0.0205]
[1734409395958,0.67413415,106480.0,106470.0,0.0205]
[1734409400952,0.67413415,106480.0,106470.0,0.02]
[1734409401152,0.72968484,106480.0,106470.0,0.02]
[1734409401756,0.67413415,106480.0,106470.0,0.02]
[1734409403665,0.8698453,106480.0,106470.0,0.02]
[1734409403861,0.9298453,106480.0,106470.0,0.02]
[1734409404363,0.81773367,106480.0,106470.0,0.02]
[1734409405359,0.75773367,106480.0,106470.0,0.02]
[1734409411571,0.64663229,106480.0,106470.0,0.02]
[1734409411757,0.75773367,106480.0,106470.0,0.02]
[1734409413371,0.92592622,106480.0,106470.0,0.02]
[1734409414475,0.75773367,106480.0,106470.0,0.02]
[1734409416068,0.046958,106470.0,106460.0,0.0205]
[1734409416256,0.57550831,106470.0,106460.0,0.0205]
[1734409417060,0.61480831,106470.0,106460.0,0.02]
[1734409417664,0.51995762,106470.0,106460.0,0.13110138]
[1734409417854,0.51995762,106470.0,106460.0,0.20621369]
[1734409418053,0.46714033,106470.0,106460.0,0.20671369]
[1734409418269,0.55128661,106470.0,106460.0,0.20671369]
[1734409418570,0.55128661,106470.0,106460.0,0.24931369]
[1734409419071,0.6041039,106470.0,106460.0,0.24881369]
[1734409419384,0.08414628,106470.0,106460.0,0.30436438]
[1734409419557,0.08414628,106470.0,106460.0,0.60436438]
[1734409419558,0.08414159,106470.0,106460.0,0.60436438]
[1734409419764,0.60409521,106480.0,106460.0,0.60436438]
[1734409420067,0.60409521,106480.0,106470.0,0.10250869]
[1734409420466,0.60409521,106480.0,106470.0,0.046958]
[1734409420665,0.60409521,106480.0,106470.0,0.10250869]
[1734409421982,0.6596459,106480.0,106470.0,0.046958]
[1734409422168,0.57550431,106480.0,106460.0,0.24931269]
[1734409422465,0.44491152,106470.0,106460.0,0.24931269]
[1734409422871,0.08411152,106470.0,106460.0,0.24931269]
[1734409423069,0.08411152,106470.0,106460.0,0.24881269]
[1734409424073,0.08411152,106470.0,106460.0,0.24931269]
[1734409424968,0.08411152,106470.0,106460.0,0.24881269]
[1734409425176,0.08411152,106470.0,106460.0,0.30436338]
[1734409425969,0.08411152,106470.0,106460.0,0.30486338]
[1734409426170,0.11276075,106490.0,106460.0,1.02121407]
[1734409426377,0.50096046,106510.0,106490.0,0.046946]
[1734409426570,0.3608,106510.0,106500.0,0.14559569]
[1734409427266,0.36088367,106510.0,106500.0,0.14559569]
[1734409428168,0.36088367,106510.0,106500.0,0.090045]
[1734409429074,0.36088367,106510.0,106500.0,0.09973217]
[1734409432968,0.36088367,106510.0,106500.0,0.18433518]
[1734409434168,0.36088367,106510.0,106500.0,0.09973217]
[1734409434774,0.36088367,106510.0,106500.0,0.18433518]
[1734409435571,8.367e-05,106510.0,106500.0,0.26893819]
[1734409437480,8.367e-05,106510.0,106500.0,0.18433518]
[1734409438784,8.367e-05,106510.0,106500.0,0.54513518]
[1734409439580,8.367e-05,106510.0,106500.0,0.18433518]
[1734409444181,0.00058367,106510.0,106500.0,0.18433518]
[1734409444384,0.36138367,106510.0,106500.0,0.09973217]
[1734409444572,0.48088367,106510.0,106500.0,0.05663217]
[1734409447271,0.48088367,106510.0,106500.0,0.14123518]
[1734409448385,0.12008367,106510.0,106500.0,0.14123518]
[1734409451274,0.48088367,106510.0,106500.0,0.14123518]
[1734409453188,0.11958367,106510.0,106500.0,0.14123518]
[1734409453484,0.48038367,106510.0,106500.0,0.14123518]
[1734409454190,0.48038367,106510.0,106500.0,0.11214755]
[1734409455287,0.11958367,106510.0,106500.0,0.11214755]
[1734409455589,0.07958367,106510.0,106500.0,0.16766293]
[1734409455885,8.367e-05,106510.0,106500.0,0.16766293]
[1734409456089,8.367e-05,106510.0,106500.0,0.20916293]
[1734409457778,8.367e-05,106510.0,106500.0,0.05663217]
[1734409457977,0.45719905,106510.0,106500.0,0.05663217]
[1734409458797,0.40168367,106510.0,106500.0,0.11214755]
[1734409460085,0.40168367,106510.0,106500.0,0.05663217]
[1734409460286,0.40168367,106510.0,106500.0,0.14123384]
[1734409460683,0.04088367,106510.0,106500.0,0.14123384]
[1734409462397,0.40168367,106510.0,106500.0,0.14123384]
[1734409464285,0.40168367,106510.0,106500.0,0.05663217]
[1734409465997,0.40168367,106510.0,106500.0,0.14123384]
[1734409467086,0.36088367,106510.0,106500.0,0.14123384]
[1734409467790,8.367e-05,106510.0,106500.0,0.14123384]
[1734409471188,8.367e-05,106510.0,106500.0,0.18363384]
[1734409472001,8.367e-05,106510.0,106500.0,0.26823551]
[1734409474496,8.367e-05,106510.0,106500.0,0.18363384]
[1734409476409,8.367e-05,106510.0,106500.0,0.26823551]
[1734409476608,8.367e-05,106510.0,106500.0,0.18363384]
[1734409476997,8.367e-05,106510.0,106500.0,0.26823551]
[1734409477500,8.367e-05,106510.0,106500.0,0.62903551]
[1734409480104,8.367e-05,106510.0,106500.0,0.57083285]
[1734409490016,8.367e-05,106510.0,106500.0,0.21003285]
[1734409490208,8.367e-05,106510.0,106500.0,0.57083285]
[1734409490713,8.367e-05,106510.0,106500.0,0.58965034]
[1734409493216,8.367e-05,106510.0,106500.0,0.64515068]
[1734409493609,8.367e-05,106510.0,106500.0,0.58965034]
[1734409495214,8.367e-05,106510.0,106500.0,0.64515068]
[1734409495608,8.367e-05,106510.0,106500.0,0.58965034]
[1734409496919,8.367e-05,106510.0,106500.0,0.64515068]
[1734409498110,8.367e-05,106510.0,106500.0,0.58965034]
[1734409498315,8.367e-05,106510.0,106500.0,0.64515068]
[1734409499622,0.0824,106520.0,106500.0,0.64515068]
[1734409499822,0.51496328,106530.0,106510.0,0.51874168]
[1734409500016,0.59626328,106530.0,106520.0,0.15793668]
[1734409500220,0.4841,106530.0,106520.0,0.15793668]
[1734409500923,0.48419976,106530.0,106520.0,0.15801324]
[1734409501126,0.12339976,106530.0,106520.0,0.15801324]
[1734409501717,0.11216328,106540.0,106530.0,0.046932]
[1734409501917,0.51456328,106550.0,106540.0,0.046927]
[1734409502115,0.55546328,106550.0,106540.0,0.15792768]
[1734409502316,0.4433,106550.0,106540.0,0.15792768]
[1734409502824,0.44341254,106550.0,106540.0,0.15792768]
[1734409503019,0.55557582,106550.0,106540.0,0.15792768]
[1734409503219,0.44341254,106550.0,106540.0,0.15792768]
[1734409503817,0.08261254,106550.0,106540.0,0.15792768]
[1734409504321,0.44341254,106550.0,106540.0,0.15792768]
[1734409505123,0.48381254,106550.0,106540.0,0.15792768]
[1734409506725,0.12301254,106550.0,106540.0,0.15792768]
[1734409506926,0.48381254,106550.0,106540.0,0.15792768]
[1734409507322,0.53931288,106550.0,106540.0,0.046927]
[1734409508027,0.53931288,106550.0,106540.0,0.05633499]
[1734409508625,0.53931288,106550.0,106540.0,0.11183533]
[1734409510628,0.53931288,106550.0,106540.0,0.05633499]
[1734409510839,0.53931288,106550.0,106540.0,0.046927]
[1734409512830,0.53931288,106550.0,106540.0,0.10242734]
[1734409513134,0.48381254,106550.0,106540.0,0.10242734]
[1734409518237,0.53073554,106550.0,106540.0,0.046927]
[1734409519239,0.53123554,106550.0,106540.0,0.046927]
[1734409520036,0.54064334,106550.0,106540.0,0.046927]
[1734409520939,0.54064334,106550.0,106540.0,0.10242734]
[1734409525249,0.90144334,106550.0,106540.0,0.10242734]
[1734409526335,1.01360662,106550.0,106540.0,0.10242734]
[1734409526533,0.85452034,106550.0,106540.0,0.10242734]
[1734409526739,0.84511254,106550.0,106540.0,0.10242734]
[1734409527655,0.84511254,106550.0,106540.0,0.15792768]
[1734409527857,0.84511254,106550.0,106540.0,0.10242734]
[1734409528154,0.84461254,106550.0,106540.0,0.15792768]
[1734409528359,0.84461254,106550.0,106540.0,0.10242734]
[1734409529447,0.95677582,106550.0,106540.0,0.10242734]
[1734409529656,0.95677582,106550.0,106540.0,0.046927]
[1734409529858,0.95677582,106550.0,106540.0,0.10242734]
[1734409530161,0.84461254,106550.0,106540.0,0.10242734]
[1734409530358,0.84461254,106550.0,106540.0,0.046927]
[1734409530359,0.95677582,106550.0,106540.0,0.046927]
[1734409530555,1.01227616,106550.0,106540.0,0.046927]
[1734409532156,0.046931,106540.0,106520.0,0.04701156]
[1734409532356,0.046931,106540.0,106510.0,0.046939]
[1734409532357,0.97784396,106530.0,106510.0,0.046939]
[1734409532554,0.52841196,106520.0,106510.0,0.046939]
[1734409533353,0.3608,106520.0,106510.0,0.10243934]
[1734409541578,0.3608,106520.0,106510.0,0.15793968]
[1734409542058,0.3608,106520.0,106510.0,0.10243934]
[1734409542254,0.3608,106520.0,106510.0,0.15793968]
[1734409542664,0.3608,106520.0,106510.0,0.10243934]
[1734409549780,0.401,106520.0,106510.0,0.10243934]
[1734409550163,0.401,106520.0,106510.0,0.10293934]
[1734409555377,0.0402,106520.0,106510.0,0.10293934]
[1734409556078,0.401,106520.0,106510.0,0.10293934]
[1734409557872,0.401,106520.0,106510.0,0.15843968]
[1734409558078,0.401,106520.0,106510.0,0.46373934]
[1734409558079,0.0402,106520.0,106510.0,0.46373934]
[1734409559870,0.4414,106530.0,106510.0,0.46373934]
[1734409560069,0.4414,106530.0,106520.0,0.10243634]
[1734409560274,0.52477952,106530.0,106520.0,0.10243634]
[1734409561276,0.52527952,106530.0,106520.0,0.10243634]
[1734409562382,0.52477952,106530.0,106520.0,0.10243634]
[1734409563280,0.52527952,106530.0,106520.0,0.10243634]
[1734409564187,0.52477952,106530.0,106520.0,0.10243634]
[1734409565276,0.52527952,106530.0,106520.0,0.10243634]
[1734409565876,0.52527952,106530.0,106520.0,0.15793668]
[1734409566071,0.48347952,106530.0,106520.0,0.15793668]
[1734409566280,0.48347952,106530.0,106520.0,0.16752478]
[1734409566983,0.3996,106530.0,106520.0,0.16752478]
[1734409567185,0.48347952,106530.0,106520.0,0.16752478]
[1734409567385,0.3996,106530.0,106520.0,0.16752478]
[1734409567987,0.3996,106530.0,106520.0,0.52832478]
[1734409567988,0.0388,106530.0,106520.0,0.52832478]
[1734409568783,0.0005,106530.0,106520.0,0.56992478]
[1734409569989,0.0005,106530.0,106520.0,0.66532512]
[1734409570193,0.0005,106530.0,106520.0,0.60982478]
[1734409570381,0.0005,106530.0,106520.0,0.65282478]
[1734409574791,0.0005,106530.0,106520.0,0.29202478]
[1734409574987,0.0005,106530.0,106520.0,0.65282478]
[1734409576193,0.0403,106540.0,106520.0,0.65282478]
[1734409576493,0.0403,106540.0,106530.0,0.10243234]
[1734409577192,0.0408,106540.0,106530.0,0.10243234]
[1734409578295,0.0403,106540.0,106530.0,0.10243234]
[1734409579183,0.0408,106540.0,106530.0,0.10243234]
[1734409580188,0.0403,106540.0,106530.0,0.10243234]
[1734409581294,0.0408,106540.0,106530.0,0.10243234]
[1734409582295,0.0403,106540.0,106530.0,0.10243234]
[1734409582685,0.0403,106540.0,106530.0,0.046932]
[1734409582884,0.51210068,106540.0,106530.0,0.046932]
[1734409583189,0.49770034,106540.0,106530.0,0.046932]
[1734409583588,0.58157986,106540.0,106530.0,0.046932]
[1734409584190,0.58107986,106540.0,106530.0,0.046932]
[1734409585294,0.58157986,106540.0,106530.0,0.046932]
[1734409586184,0.58107986,106540.0,106530.0,0.046932]
[1734409586793,0.52557952,106540.0,106530.0,0.10243234]
[1734409587195,0.52607952,106540.0,106530.0,0.10243234]
[1734409588399,0.52557952,106540.0,106530.0,0.10243234]
[1734409589400,0.52607952,106540.0,106530.0,0.10243234]
[1734409589791,0.58157986,106540.0,106530.0,0.046932]
[1734409593205,0.58107986,106540.0,106530.0,0.046932]
[1734409593512,0.69319148,106540.0,106530.0,0.046932]
[1734409594195,0.63769114,106540.0,106530.0,0.046932]
[1734409594900,0.63769114,106540.0,106530.0,0.10243234]
[1734409598210,0.52557952,106540.0,106530.0,0.10243234]
[1734409599410,0.63769114,106540.0,106530.0,0.10243234]